bitfinex-derivatives/quotes_ETHF0:USTF0_20251012
["timestamp","ask_amount","ask_price","bid_price","bid_amount"]
[1760230565368,0.48538,3704.7,3704.6,0.3401]
[1760230565569,0.3594,3704.9,3704.1,0.3401]
[1760230565769,0.3594,3704.9,3703.4,0.09844369]
[1760230565770,0.48548,3704.0,3703.5,0.1384]
[1760230566073,0.3594,3704.3,3703.5,0.1384]
[1760230566375,0.3594,3704.9,3703.8,0.82559]
[1760230566675,0.3594,3704.9,3704.1,0.3401]
[1760230566867,0.3594,3704.9,3704.2,0.48544]
[1760230567269,0.3594,3704.9,3703.4,0.09844369]
[1760230567270,0.3594,3704.4,3703.4,0.43854369]
[1760230567474,0.3594,3704.4,3703.6,0.3401]
[1760230567475,0.48543,3704.3,3703.6,0.3401]
[1760230567775,0.48541,3704.5,3703.9,0.3401]
[1760230568077,0.48544,3704.3,3704.1,0.3401]
[1760230568479,0.48541,3704.5,3704.0,0.62386]
[1760230568676,0.48541,3704.5,3704.1,0.3401]
[1760230569077,0.48539,3704.7,3704.2,0.48544]
[1760230569277,0.3626021,3705.2,3704.7,0.48537]
[1760230569278,0.0032021,3705.2,3704.7,0.48537]
[1760230569476,0.0032021,3705.2,3704.6,0.3401]
[1760230569477,0.4885121,3705.2,3705.1,0.3401]
[1760230570577,0.48534,3705.0,3704.6,0.3401]
[1760230570779,0.0032021,3705.2,3704.1,0.3401]
[1760230570780,0.3594,3705.1,3704.1,0.3401]
[1760230570981,0.48543,3704.4,3704.1,0.3401]
[1760230571275,0.48544,3704.3,3704.1,0.3401]
[1760230571480,1.21342,3704.9,3703.7,0.3401]
[1760230571777,0.48545,3704.2,3703.9,0.3401]
[1760230571974,0.48549,3703.9,3703.8,0.3401]
[1760230572977,0.48546,3704.1,3703.9,0.3401]
[1760230573176,0.48546,3704.1,3703.8,0.3401]
[1760230573374,0.48546,3704.1,3703.9,0.3401]
[1760230573576,0.48546,3704.1,3704.0,0.3401]
[1760230573974,0.48548,3704.0,3703.5,0.96402]
[1760230574281,0.84485,3704.2,3703.6,0.82561]
[1760230574472,0.0032021,3705.2,3703.6,0.3401]
[1760230574672,0.4885221,3705.2,3704.8,0.3401]
[1760230574877,0.4885221,3705.2,3704.7,0.48537]
[1760230575078,0.48534,3705.1,3704.9,0.3401]
[1760230575382,0.0032021,3705.2,3704.5,0.6238]
[1760230575383,0.48537,3704.8,3704.6,0.3401]
[1760230575574,0.8448,3704.6,3704.2,0.3401]
[1760230575773,0.8448,3704.6,3704.1,0.48545]
[1760230575974,0.48541,3704.5,3704.2,0.3401]
[1760230576178,0.48541,3704.5,3704.3,0.3401]
[1760230576376,0.48538,3704.7,3704.3,0.3401]
[1760230576583,0.0032021,3705.2,3704.6,0.3401]
[1760230576779,0.48536,3704.9,3704.7,0.3401]
[1760230576982,0.48538,3704.7,3704.6,0.3401]
[1760230577185,0.48538,3704.7,3703.7,1.21376]
[1760230577186,0.48548,3703.9,3703.8,0.3401]
[1760230577690,0.3594,3704.3,3703.5,0.4785]
[1760230577691,0.48552,3703.6,3703.5,0.4785]
[1760230577876,0.48549,3703.9,3703.5,0.4785]
[1760230578077,0.48549,3703.9,3703.5,0.1384]
[1760230578278,0.48552,3703.7,3703.6,0.3401]
[1760230578881,0.0359,3705.0,3703.6,0.3401]
[1760230579182,0.48544,3704.2,3704.1,0.3401]
[1760230579382,0.48552,3703.7,3703.6,0.3401]
[1760230580585,0.48547,3704.0,3703.5,0.1384]
[1760230580779,0.48547,3704.0,3703.6,0.48552]
[1760230580983,0.48546,3704.1,3704.0,0.4785]
[1760230581483,0.3594,3704.7,3703.5,0.1384]
[1760230581484,0.4855,3703.8,3703.6,0.3401]
[1760230581683,0.48548,3704.0,3703.7,0.3401]
[1760230581888,0.3594,3704.3,3703.6,0.3401]
[1760230582087,0.3594,3703.6,3703.4,0.09844369]
[1760230582282,0.3594,3703.5,3703.4,0.09844369]
[1760230582485,0.48561,3703.0,3702.7,0.82573]
[1760230582689,0.48561,3703.0,3702.8,0.3401]
[1760230582890,0.84498,3703.2,3702.8,0.3401]
[1760230583186,0.48561,3703.0,3702.5,0.1384]
[1760230583590,0.3594,3702.9,3702.5,0.48566]
[1760230583784,0.3594,3702.8,3702.5,0.48566]
[1760230583978,0.3594,3702.8,3701.7,1.21441]
[1760230583979,0.0359,3702.5,3698.0,0.1384]
[1760230584185,0.1338,3701.5,3699.1,0.3401]
[1760230584479,0.1338,3701.5,3699.6,0.3401]
[1760230584480,0.48589,3700.8,3699.6,0.3401]
[1760230584681,0.67431663,3700.7,3699.6,0.48605]
[1760230584882,0.67431663,3700.6,3699.7,0.3401]
[1760230585082,0.48595,3700.4,3699.7,0.3401]
[1760230585591,0.48597,3700.2,3699.5,0.1384]
[1760230585894,0.48603,3699.7,3699.5,0.3401]
[1760230586083,0.00302722,3699.7,3699.6,0.3401]
[1760230586288,0.00302722,3699.7,3699.0,0.1384]
[1760230586479,0.48607,3699.4,3699.0,0.1384]
[1760230586686,0.48906722,3699.7,3699.1,0.3401]
[1760230586890,0.48616,3698.8,3698.6,0.3401]
[1760230587192,0.48605,3699.6,3698.8,0.3401]
[1760230587389,0.48609,3699.3,3698.5,0.1384]
[1760230587590,0.48612,3699.1,3698.6,0.3401]
[1760230587885,0.84846722,3699.7,3698.5,0.96469]
[1760230588089,0.36242722,3699.7,3698.6,0.3401]
[1760230588288,0.48605,3699.6,3698.8,0.3401]
[1760230588486,0.00302722,3699.7,3698.8,0.3401]
[1760230588694,0.00302722,3699.7,3698.8,0.82624]
[1760230588891,0.00302722,3699.7,3699.0,0.1384]
[1760230589187,0.00302722,3699.7,3699.6,0.3401]
[1760230589594,0.00302722,3699.7,3699.1,0.3401]
[1760230590092,0.00302722,3699.7,3699.1,0.8262]
[1760230590290,0.84545,3699.6,3699.0,0.1384]
[1760230590597,0.84545,3699.6,3698.9,0.48613]
[1760230590598,0.00302722,3699.7,3698.7,0.48616]
[1760230590790,0.1338,3699.5,3698.7,0.3401]
[1760230590990,0.3594,3698.9,3698.5,0.3401]
[1760230591186,0.4861,3699.2,3698.3,0.4862]
[1760230591394,0.4861,3699.2,3698.5,0.1384]
[1760230591591,0.48612,3699.1,3698.5,0.1384]
[1760230591790,0.1338,3699.5,3698.5,0.1384]
[1760230592091,0.3594,3699.4,3698.5,0.1384]
[1760230592391,0.3594,3699.4,3698.3,0.3401]
[1760230592586,0.48618,3698.6,3698.3,0.3401]
[1760230592789,0.1338,3699.5,3697.8,0.02704311]
[1760230592790,13.36835,3699.1,3697.8,0.02704311]
[1760230593091,0.84567,3698.0,3697.8,0.02704311]
[1760230593287,0.84567,3698.0,3696.8,0.3401]
[1760230593288,0.3594,3697.9,3696.8,0.3401]
[1760230593598,0.3594,3698.4,3697.3,0.3401]
[1760230593794,0.48627,3697.9,3697.3,0.3401]
[1760230593989,0.4932,3698.5,3697.5,0.4785]
[1760230594298,0.3594,3698.5,3697.8,0.48627]
[1760230594487,0.3594,3698.5,3697.9,0.82636]
[1760230594691,0.48616,3698.8,3697.9,0.82636]
[1760230594692,0.3594,3698.8,3697.9,0.3401]
[1760230594992,0.1338,3699.5,3697.5,0.1384]
[1760230594993,0.3612,3699.4,3698.4,0.3513]
[1760230595190,0.3612,3699.4,3698.6,0.3513]
[1760230595385,0.00302722,3699.7,3698.0,1.35444]
[1760230595386,0.3612,3699.5,3698.3,0.3513]
[1760230595591,0.84737,3698.7,3697.8,0.3513]
[1760230595790,0.48619,3698.6,3698.0,0.48625]
[1760230595994,0.3612,3699.4,3697.6,0.3513]
[1760230596194,0.3612,3699.4,3697.7,0.3513]
[1760230596493,0.0366,3699.5,3697.7,0.3513]
[1760230596494,0.48622,3698.3,3697.7,0.3513]
[1760230596690,0.48613,3699.0,3698.3,0.3513]
[1760230596893,0.48615,3698.9,3698.3,0.3513]
[1760230597593,0.3612,3699.2,3698.3,0.3513]
[1760230597787,0.0366,3699.5,3698.0,0.1388]
[1760230597994,0.00302722,3699.7,3699.4,0.48606]
[1760230598301,0.00302722,3699.7,3699.0,0.1388]
[1760230598686,0.00302722,3699.7,3699.1,0.3513]
[1760230599201,0.3612,3699.6,3698.6,0.3513]
[1760230599792,0.48606,3699.5,3698.9,0.48614]
[1760230600094,0.00302722,3699.7,3698.9,0.3513]
[1760230600399,0.00302722,3699.7,3699.1,0.3513]
[1760230600802,0.00302722,3699.7,3699.6,0.3513]
[1760230601393,0.00302722,3699.7,3699.4,0.82917]
[1760230601699,0.00302722,3699.7,3699.0,0.1388]
[1760230601700,0.00302722,3699.7,3699.5,0.82915]
[1760230602297,0.00302722,3699.7,3699.6,0.3431]
[1760230604000,0.34882722,3699.7,3699.5,0.48605]
[1760230604300,0.3458,3699.6,3699.4,0.48607]
[1760230604594,0.00302722,3699.7,3699.0,0.4819]
[1760230604595,0.3458,3699.2,3699.0,0.48612]
[1760230604791,0.3458,3699.5,3699.0,0.48612]
[1760230604993,0.00302722,3699.7,3699.0,0.48612]
[1760230605304,0.00302722,3699.7,3698.8,0.48614]
[1760230605305,0.3458,3699.4,3698.8,0.48614]
[1760230605490,0.48609,3699.3,3698.5,0.3431]
[1760230605687,0.48609,3699.3,3698.8,0.48615]
[1760230606004,0.3458,3699.1,3698.9,0.48613]
[1760230606295,0.48609,3699.3,3698.9,0.48613]
[1760230606500,0.3458,3699.2,3698.9,0.48613]
[1760230606693,0.3458,3699.1,3698.9,0.48613]
[1760230607393,0.00302722,3699.7,3699.6,0.3431]
[1760230608007,0.3458,3699.6,3699.4,0.48607]
[1760230608390,0.3458,3699.5,3698.6,0.3431]
[1760230608593,0.3458,3699.5,3699.3,0.48608]
[1760230609298,0.00302722,3699.7,3699.5,0.48606]
[1760230609487,0.00302722,3699.7,3699.6,0.3431]
[1760230611094,0.48591,3700.7,3700.1,0.48598]
[1760230611401,0.3458,3700.1,3699.6,0.48803155]
[1760230611597,0.48599,3700.1,3699.6,0.00199155]
[1760230611798,0.3458,3699.9,3699.6,0.00199155]
[1760230611992,0.00221508,3699.9,3699.7,0.48603]
[1760230612193,0.3458,3699.8,3699.7,0.48603]
[1760230612401,1.02379825,3699.8,3699.7,0.48603]
[1760230612703,0.00221508,3699.9,3699.8,0.3431]
[1760230612998,0.3458,3701.5,3701.2,0.48583]
[1760230613192,0.6782071,3701.4,3701.2,0.48583]
[1760230613390,0.6782071,3701.3,3701.2,0.48583]
[1760230613588,0.6782071,3701.3,3701.2,0.82893]
[1760230613794,0.68107932,3701.3,3700.6,0.3431]
[1760230613995,0.1338,3700.5,3699.7,0.3431]
[1760230614290,0.1338,3700.5,3699.2,0.3431]
[1760230614291,0.3458,3700.3,3699.2,0.3431]
[1760230614497,0.3458,3699.8,3699.2,0.82919]
[1760230614798,1.0240071,3699.7,3699.2,0.82919]
[1760230615193,1.0240071,3699.7,3699.0,0.48612]
[1760230615388,6.0240071,3699.7,3699.0,0.48612]
[1760230615593,1.0240071,3699.7,3699.1,0.48611]
[1760230616291,0.6782071,3699.7,3699.6,0.34509155]
[1760230616495,0.486,3700.0,3699.7,0.3431]
[1760230616699,0.3458,3699.8,3699.6,0.00199155]
[1760230616899,1.02560641,3699.7,3699.6,0.00199155]
[1760230617499,0.67980641,3699.7,3699.6,0.00199155]
[1760230617697,1.02560641,3699.7,3699.6,0.00199155]
[1760230617897,6.02560641,3699.7,3699.6,0.00199155]
[1760230618299,1.02560641,3699.7,3699.6,0.00199155]
[1760230618697,6.02560641,3699.7,3699.6,0.00199155]
[1760230618901,1.02560641,3699.7,3699.6,0.00199155]
[1760230619302,0.67980641,3699.7,3699.6,0.00199155]
[1760230619696,1.02560641,3699.7,3699.6,0.00199155]
[1760230620000,5.67980641,3699.7,3698.6,0.48617]
[1760230620199,0.3458,3699.4,3698.5,0.48619]
[1760230620398,0.67980641,3699.3,3698.6,0.48617]
[1760230620592,0.48613,3699.0,3698.6,0.48617]
[1760230620793,0.67980641,3698.9,3698.7,0.48616]
[1760230620997,0.67980641,3698.8,3698.7,0.48935744]
[1760230621198,0.58071476,3698.8,3698.7,0.83245744]
[1760230621393,0.3458,3699.8,3699.5,0.48605]
[1760230621600,0.48602,3699.9,3699.5,0.48605]
[1760230621800,0.3458,3699.7,3699.5,0.48605]
[1760230622000,0.3458,3700.3,3698.9,0.3431]
[1760230622210,0.3458,3700.0,3699.7,0.48603]
[1760230622410,0.486,3700.0,3699.7,0.48603]
[1760230622718,0.3458,3699.8,3699.7,0.48603]
[1760230623709,0.3458,3700.1,3699.9,0.486]
[1760230624407,0.3458,3700.4,3700.2,0.48596]
[1760230624711,0.3458,3700.7,3700.3,0.82905]
[1760230624908,0.3418,3700.9,3700.3,0.82905]
[1760230625113,0.3418,3700.6,3700.4,0.48594]
[1760230625318,1.09251524,3701.0,3700.2,0.48596]
[1760230625319,0.82774,3700.5,3700.2,0.48596]
[1760230625609,0.3418,3700.6,3700.3,0.48595]
[1760230625815,0.3418,3700.8,3700.5,0.48592]
[1760230626017,0.3418,3700.8,3700.5,0.84112]
[1760230626214,0.00287222,3701.3,3701.1,0.3552]
[1760230626413,0.00287222,3701.3,3701.2,0.3552]
[1760230627117,0.00287222,3701.3,3701.1,0.48584]
[1760230627317,0.00287222,3701.3,3701.1,0.84104]
[1760230627518,0.00287222,3701.3,3700.5,1.35832]
[1760230627519,0.48586,3701.0,3700.5,0.48592]
[1760230627824,0.1335,3701.0,3700.2,0.48597]
[1760230628123,0.48592,3700.7,3700.3,0.48595]
[1760230628320,0.3418,3700.6,3700.4,0.48593]
[1760230628712,0.3418,3700.5,3700.2,0.48596]
[1760230629217,0.3418,3701.1,3700.1,0.3552]
[1760230629424,0.00287222,3701.3,3701.2,0.3552]
[1760230630012,0.48585,3701.1,3700.8,0.3552]
[1760230630216,0.48587,3701.0,3700.5,0.84112]
[1760230630415,0.3418,3700.9,3700.5,0.3552]
[1760230630722,0.48589,3700.8,3700.5,0.3552]
[1760230630927,1.21461,3701.2,3700.0,0.4987]
[1760230631124,0.3418,3700.4,3700.0,0.3552]
[1760230631418,0.3418,3700.4,3699.6,0.3552]
[1760230631715,0.00287222,3701.3,3700.1,0.3552]
[1760230632122,0.48870222,3701.3,3700.3,0.3552]
[1760230632314,0.00287222,3701.3,3701.1,0.48585]
[1760230632519,0.00287222,3701.3,3701.2,0.3552]
[1760230632717,0.48586,3701.1,3700.8,0.3552]
[1760230633118,0.82766,3701.1,3700.8,0.3552]
[1760230633514,0.3418,3701.0,3700.7,0.4859]
[1760230633717,0.48586,3701.1,3700.8,0.84108]
[1760230634019,0.3418,3701.0,3700.8,0.48588]
[1760230634419,0.48586,3701.1,3700.8,0.84108]
[1760230634622,0.82766,3701.1,3700.8,0.84108]
[1760230634824,0.48588,3700.9,3700.6,0.48591]
[1760230635019,0.82768,3700.9,3700.6,0.48591]
[1760230635220,0.82768,3700.9,3700.6,0.84111]
[1760230635525,0.48870222,3701.3,3700.6,0.3552]
[1760230635824,0.00287222,3701.3,3701.2,0.3552]
[1760230636823,0.00287222,3701.3,3701.2,5.3552]
[1760230637413,7.56769,3702.4,3701.3,0.3552]
[1760230637618,7.082,3702.4,3702.1,0.48571]
[1760230637822,7.4238,3702.4,3701.8,0.48575]
[1760230638115,7.90949,3702.4,3701.8,0.48575]
[1760230638315,7.082,3702.4,3701.6,0.3552]
[1760230638628,7.08503939,3702.4,3701.6,0.35859763]
[1760230638824,7.57072939,3702.4,3701.6,0.35859763]
[1760230639224,7.57072939,3702.4,3702.0,0.48573]
[1760230639427,7.57072939,3702.4,3701.6,0.00339763]
[1760230639428,0.3418,3702.3,3701.6,0.00339763]
[1760230639626,0.48576,3701.8,3701.6,0.00339763]
[1760230639826,0.48576,3701.8,3701.7,0.3552]
[1760230640124,0.48573,3702.0,3701.6,0.00339763]
[1760230640327,0.48573,3702.1,3701.8,0.3552]
[1760230640520,0.48573,3702.1,3701.9,0.3552]
[1760230640727,0.00303939,3702.4,3701.8,0.48575]
[1760230640728,0.48572,3702.2,3701.8,0.48575]
[1760230640928,0.48573,3702.1,3701.9,0.3552]
[1760230641828,0.48573,3702.1,3701.6,0.48917763]
[1760230641829,0.48871939,3702.4,3702.1,0.48571]
[1760230642029,0.48871939,3702.4,3702.3,0.3552]
[1760230642526,0.48571,3702.2,3701.6,0.48917763]
[1760230642827,0.3418,3702.3,3701.6,0.00339763]
[1760230643126,0.82755,3701.9,3701.6,0.00339763]
[1760230643330,0.48577,3701.8,3701.6,0.00339763]
[1760230643520,1.21725939,3702.4,3700.9,1.21468]
[1760230643521,0.48571,3702.2,3700.9,1.21468]
[1760230643831,0.48572,3702.1,3701.7,0.48577]
[1760230644521,0.48574,3702.0,3701.7,0.48577]
[1760230644724,0.48571,3702.2,3701.9,0.3552]
[1760230644930,0.48569,3702.3,3701.3,0.3552]
[1760230645129,0.4857,3702.3,3701.9,0.48574]
[1760230645329,0.4857,3702.3,3702.1,0.3552]
[1760230646231,0.34483939,3702.4,3701.7,0.48576]
[1760230646431,0.34483939,3702.4,3701.9,0.3552]
[1760230646625,0.4857,3702.3,3702.0,0.3552]
[1760230646830,0.4857,3702.3,3702.2,0.3552]
[1760230647029,0.34483939,3702.4,3702.2,0.3552]
[1760230647030,0.00303939,3702.4,3702.3,0.3552]
[1760230647224,0.1335,3704.0,3703.4,0.48554]
[1760230647428,0.1392,3704.5,3703.1,0.3552]
[1760230647429,0.48543,3704.4,3703.1,0.3552]
[1760230647631,0.48543,3704.4,3703.8,0.48548]
[1760230647840,0.481,3704.5,3703.8,0.3552]
[1760230648132,0.48543,3704.3,3703.9,0.3552]
[1760230648339,0.48546,3704.1,3703.8,0.00229885]
[1760230648537,0.82728,3703.9,3703.8,0.00229885]
[1760230649138,0.82728,3703.9,3702.0,0.1435]
[1760230649139,0.3418,3703.4,3702.3,0.3552]
[1760230649339,0.3418,3703.4,3701.6,0.3552]
[1760230649340,0.3418,3702.4,3701.6,0.3552]
[1760230649537,0.3418,3702.3,3701.9,0.84093]
[1760230649738,0.8275,3702.3,3702.0,0.3552]
[1760230649936,0.8275,3702.3,3701.9,0.48573]
[1760230650136,0.8275,3702.3,3702.0,0.3552]
[1760230650539,0.48571,3702.2,3702.0,0.3552]
[1760230651737,0.82751,3702.2,3702.0,0.3552]
[1760230651937,1.35323,3703.0,3701.9,0.00326961]
[1760230651938,0.82753,3702.0,3701.9,0.00326961]
[1760230653343,0.48586,3701.1,3700.5,0.62943]
[1760230653544,0.48588,3700.9,3700.8,0.3552]
[1760230653746,0.48588,3700.9,3700.6,0.3552]
[1760230654040,0.48588,3700.9,3700.5,0.1435]
[1760230654243,0.48588,3700.9,3700.6,0.3552]
[1760230654244,0.4859,3700.8,3700.6,0.3552]
[1760230654938,0.4859,3700.8,3700.4,0.48593]
[1760230655136,0.4859,3700.8,3700.3,0.3662]
[1760230655339,0.4859,3700.8,3700.2,0.48596]
[1760230655340,0.84964,3700.5,3700.1,0.3662]
[1760230655539,0.48596,3700.3,3700.1,0.3662]
[1760230655951,0.8496,3700.7,3700.1,0.48597]
[1760230656154,0.00238363,3700.9,3699.0,1.3588]
[1760230656155,0.00238363,3700.9,3700.2,0.3662]
[1760230656348,0.48595,3700.4,3700.2,0.3662]
[1760230657246,0.84965,3700.4,3700.0,0.3662]
[1760230657445,0.48597,3700.2,3699.5,0.5097]
[1760230657951,0.48594,3700.5,3700.2,0.3662]
[1760230658653,0.48594,3700.5,3700.3,0.3662]
[1760230660151,0.3637,3700.6,3699.6,0.3662]
[1760230660346,0.48602,3699.9,3699.5,0.1435]
[1760230660544,0.84969,3700.1,3699.7,0.3662]
[1760230660747,0.48602,3699.8,3699.0,0.1435]
[1760230661043,0.1475,3700.5,3699.1,1.21529]
[1760230661252,0.1475,3700.5,3699.7,0.48603]
[1760230661253,0.48599,3700.1,3699.7,0.48603]
[1760230661544,0.486,3700.0,3699.8,0.3681]
[1760230661751,0.1475,3700.5,3699.0,0.1435]
[1760230661752,0.48607,3699.4,3699.2,0.3681]
[1760230662245,0.48612,3699.1,3698.8,0.3681]
[1760230662446,0.48612,3699.1,3698.7,0.48615]
[1760230662653,0.83889,3699.3,3698.9,0.48613]
[1760230662852,0.3528,3699.9,3699.1,0.3681]
[1760230663044,0.48606,3699.6,3699.3,0.48607]
[1760230663244,0.48606,3699.6,3699.1,0.3681]
[1760230663245,0.48607,3699.5,3699.1,0.48611]
[1760230663646,0.48604,3699.7,3699.3,0.3681]
[1760230663847,0.486,3700.0,3699.1,0.3681]
[1760230664045,0.48601,3699.9,3699.5,0.48605]
[1760230664247,0.48601,3699.9,3699.7,0.3681]
[1760230664652,0.83881,3699.9,3699.7,0.3681]
[1760230664844,0.48604,3699.7,3699.5,0.85415]
[1760230665247,0.3528,3700.4,3699.6,0.85414]
[1760230665761,0.48601,3699.9,3699.7,0.3681]
[1760230666050,0.48606,3699.5,3699.3,0.3681]
[1760230666356,0.3528,3699.2,3699.0,0.85422]
[1760230666956,0.48609,3699.3,3699.1,0.3681]
[1760230667652,0.48609,3699.3,3699.1,0.85421]
[1760230667949,0.3528,3699.9,3698.6,1.58355]
[1760230668151,12.14239,3702.4,3699.9,0.486]
[1760230668152,0.48598,3700.2,3699.9,0.486]
[1760230668355,0.47999,3700.1,3699.7,0.3681]
[1760230668548,0.48596,3700.3,3700.0,0.3681]
[1760230668749,0.48597,3700.2,3700.0,0.3681]
[1760230669060,0.48601,3699.9,3699.6,0.85414]
[1760230669251,0.48601,3699.9,3699.7,0.3681]
[1760230669443,0.48601,3699.9,3699.8,0.3681]
[1760230669647,0.48599,3700.1,3699.8,0.48601]
[1760230669852,0.48599,3700.1,3699.9,0.3681]
[1760230670052,0.48601,3700.0,3699.7,0.3681]
[1760230670250,0.48601,3700.0,3699.8,0.3681]
[1760230670452,0.48601,3700.0,3699.6,0.48604]
[1760230670652,0.48601,3699.9,3699.6,0.48604]
[1760230670854,0.48601,3699.9,3699.8,0.3681]
[1760230673056,1.2148,3700.6,3699.5,0.1431]
[1760230673057,0.3528,3700.8,3700.0,0.5112]
[1760230673253,0.48593,3700.6,3700.0,0.1431]
[1760230673448,0.48594,3700.5,3700.0,0.1431]
[1760230673650,0.48826363,3700.9,3700.1,0.3681]
[1760230674249,0.00238363,3700.9,3700.8,0.3681]
[1760230674454,0.3528,3702.1,3701.0,0.1431]
[1760230674653,0.83852,3702.1,3701.4,0.4858]
[1760230674950,0.83852,3702.1,3701.5,0.62889]
[1760230675153,0.48574,3702.0,3701.5,0.62889]
[1760230675358,0.48578,3701.7,3701.6,0.3681]
[1760230675553,0.00286103,3701.7,3701.6,0.3681]
[1760230676248,0.83859,3701.6,3701.3,0.85392]
[1760230676454,0.00286103,3701.7,3701.6,0.3681]
[1760230678257,0.00286103,3701.7,3701.3,0.48582]
[1760230678556,0.00286103,3701.7,3701.5,0.85389]
[1760230678859,0.00286103,3701.7,3701.6,0.3681]
[1760230679860,0.48565,3702.7,3701.7,0.3681]
[1760230680255,0.1347,3703.5,3702.5,0.48566]
[1760230680451,0.3528,3703.4,3702.8,0.3681]
[1760230680656,0.48558,3703.2,3702.8,0.85372]
[1760230680852,0.48896118,3703.2,3702.9,0.3681]
[1760230681057,0.48896118,3703.2,3703.0,0.3681]
[1760230681263,0.48559,3703.1,3702.9,0.3681]
[1760230681560,0.48559,3703.1,3703.0,0.3681]
[1760230681761,1.34872,3703.0,3702.0,0.5112]
[1760230682057,0.48567,3702.5,3702.1,0.85381]
[1760230682359,0.48569,3702.4,3702.3,0.3681]
[1760230682558,0.48572,3702.1,3702.0,0.3681]
[1760230683153,0.3528,3702.3,3701.6,0.3681]
[1760230683457,0.1347,3702.0,3700.5,0.1431]
[1760230683655,0.83868,3700.9,3700.0,0.1431]
[1760230683958,0.83868,3700.9,3700.3,0.3681]
[1760230684664,0.3528,3701.4,3700.5,0.1397]
[1760230684860,0.3526,3701.9,3701.0,0.1397]
[1760230685165,0.48582,3701.4,3701.1,0.3375]
[1760230685358,0.83843,3701.3,3701.1,0.3375]
[1760230685656,0.1347,3702.0,3700.5,0.4772]
[1760230685859,0.1347,3702.0,3700.6,0.48591]
[1760230685860,0.3526,3700.9,3700.6,0.48591]
[1760230686058,0.1434,3701.5,3700.6,0.48591]
[1760230686270,0.3526,3701.4,3700.6,0.82341]
[1760230686659,0.48588,3701.0,3700.6,0.82341]
[1760230686960,0.48588,3701.0,3700.8,0.3400799]
[1760230687665,0.3526,3702.4,3701.1,0.3375]
[1760230687866,0.48574,3702.0,3701.6,0.48577]
[1760230688059,0.48574,3702.0,3701.0,0.1397]
[1760230688060,0.48569,3702.4,3701.9,0.48574]
[1760230688367,0.48571,3702.2,3701.6,0.82328]
[1760230688563,0.1434,3702.5,3701.6,0.3375]
[1760230688758,0.3526,3702.4,3701.6,0.3375]
[1760230689068,0.48582,3701.4,3701.1,0.48584]
[1760230689473,0.48582,3701.4,3701.2,0.3375]
[1760230689774,0.48586,3701.1,3700.9,0.3375]
[1760230689968,0.83846,3701.1,3700.9,0.3375]
[1760230691062,0.83848,3700.9,3700.8,0.0025799]
[1760230693575,0.48599,3700.0,3699.9,0.3375]
[1760230693765,0.48599,3700.0,3698.5,3.76235004]
[1760230693766,1.5675,3700.3,3699.1,0.3375]
[1760230693960,0.48608,3699.4,3699.2,0.3375]
[1760230694160,1.21503,3699.9,3699.1,0.3375]
[1760230694370,0.48611,3699.2,3698.6,0.82367]
[1760230694565,0.48817829,3699.2,3698.7,0.48615]
[1760230694866,0.00206829,3699.2,3698.7,0.3375]
[1760230695066,0.00206829,3699.2,3698.6,0.00255059]
[1760230695067,0.00206829,3699.2,3699.1,0.3375]
[1760230697366,0.48611,3699.1,3698.6,0.48872059]
[1760230697569,0.48611,3699.1,3698.6,0.00255059]
[1760230697764,0.48611,3699.1,3698.8,0.48614]
[1760230697963,0.00206829,3699.2,3698.8,0.3375]
[1760230698168,0.35466829,3699.2,3698.9,0.82363]
[1760230698974,0.35466829,3699.2,3699.0,0.3375]
[1760230699471,0.00206829,3699.2,3699.1,0.3375]
[1760230699673,0.00206829,3699.2,3699.1,5.3375]
[1760230699874,0.3526,3700.8,3700.2,0.48596]
[1760230700070,1.21445,3701.7,3700.4,0.48593]
[1760230700071,0.3526,3700.7,3700.4,0.48593]
[1760230700268,0.3526,3700.8,3700.4,0.48593]
[1760230700474,0.48588,3700.9,3700.4,0.48593]
[1760230700777,0.3526,3700.8,3700.6,0.48591]
[1760230701071,0.3526,3700.8,3700.5,0.48592]
[1760230701072,0.3526,3700.7,3700.5,0.48592]
[1760230701280,0.00269671,3700.8,3700.7,0.8234]
[1760230702271,0.00269671,3700.8,3700.1,1.21495]
[1760230702272,0.00269671,3700.8,3700.1,0.3375]
[1760230702470,0.00269671,3700.8,3700.5,0.48592]
[1760230702471,0.3526,3700.7,3700.5,0.48592]
[1760230702676,0.00269671,3700.8,3700.7,0.8234]
[1760230703175,0.00269671,3700.8,3700.7,0.3375]
[1760230703372,0.00269671,3700.8,3700.0,0.1397]
[1760230703373,0.3526,3700.7,3700.0,0.4772]
[1760230704575,0.3526,3700.7,3700.0,0.3375]
[1760230704785,0.3526,3699.9,3699.5,0.3375]
[1760230705073,0.3526,3699.9,3699.7,0.48603]
[1760230705268,0.1434,3700.5,3699.7,0.48603]
[1760230705471,0.48603,3699.8,3699.5,0.3375]
[1760230705676,0.3526,3699.3,3698.7,0.3375]
[1760230706077,0.83877,3698.7,3698.6,0.00255059]
[1760230708372,0.48617,3698.7,3698.6,0.34005059]
[1760230708979,0.83877,3698.7,3698.6,0.00255059]
[1760230709373,0.3526,3698.7,3698.6,0.00255059]
[1760230709581,0.1434,3699.5,3698.7,0.3375]
[1760230709883,0.3526,3699.9,3699.2,0.3375]
[1760230710081,0.48598,3700.2,3699.6,0.48604]
[1760230710287,0.3526,3700.4,3699.6,0.82354]
[1760230710481,0.3526,3700.4,3699.6,0.3375]
[1760230710781,0.00269671,3700.8,3700.5,0.3375]
[1760230710782,0.35529671,3700.8,3700.5,0.3375]
[1760230711182,0.48591,3700.7,3700.5,0.3375]
[1760230711385,0.3526,3700.7,3700.5,0.3375]
[1760230711682,0.00269671,3700.8,3700.6,0.48591]
[1760230711985,0.00269671,3700.8,3700.7,0.3375]